[Event "Live Chess"]
[Site "Chess.com"]
[Date "2010.12.03"]
[Round "-"]
[White "hipposcottimus"]
[Black "ShoneCAR"]
[Result "0-1"]
[CurrentPosition "8/8/1pk5/p7/PKP5/8/8/8 w - -"]
[Timezone "UTC"]
[ECO "C43"]
[ECOUrl "https://www.chess.com/openings/Petrovs-Defense-Steinitz-Attack"]
[UTCDate "2010.12.03"]
[UTCTime "01:24:42"]
[WhiteElo "1682"]
[BlackElo "1688"]
[TimeControl "60"]
[Termination "ShoneCAR won on time"]
[StartTime "01:24:42"]
[EndDate "2010.12.03"]
[EndTime "01:26:51"]
[Link "https://www.chess.com/game/live/73492606"]

1. e4 {[%clk 0:01:00]} 1... e5 {[%clk 0:01:00]} 2. Nf3 {[%clk 0:00:58.6]} 2... Nf6 {[%clk 0:00:59.7]} 3. d4 {[%clk 0:00:58.3]} 3... g6 {[%clk 0:00:59.4]} 4. dxe5 {[%clk 0:00:57.5]} 4... Ng8 {[%clk 0:00:58.7]} 5. Bd3 {[%clk 0:00:56.4]} 5... f6 {[%clk 0:00:58.5]} 6. Nc3 {[%clk 0:00:55.9]} 6... fxe5 {[%clk 0:00:57.8]} 7. Nd2 {[%clk 0:00:54.6]} 7... Bg7 {[%clk 0:00:56.9]} 8. O-O {[%clk 0:00:54.2]} 8... Nf6 {[%clk 0:00:56.3]} 9. f4 {[%clk 0:00:51]} 9... exf4 {[%clk 0:00:54.7]} 10. Nf3 {[%clk 0:00:50.7]} 10... O-O {[%clk 0:00:53.9]} 11. Bxf4 {[%clk 0:00:50.2]} 11... d6 {[%clk 0:00:53.2]} 12. Bc4+ {[%clk 0:00:49.8]} 12... Kh8 {[%clk 0:00:51.7]} 13. Nd5 {[%clk 0:00:49.3]} 13... Nxd5 {[%clk 0:00:49.2]} 14. Qxd5 {[%clk 0:00:49]} 14... Bg4 {[%clk 0:00:47.2]} 15. e5 {[%clk 0:00:45.6]} 15... Bxf3 {[%clk 0:00:46.4]} 16. Qxf3 {[%clk 0:00:44]} 16... dxe5 {[%clk 0:00:44.4]} 17. Bg5 {[%clk 0:00:39.6]} 17... Rxf3 {[%clk 0:00:43.1]} 18. Bxd8 {[%clk 0:00:38.6]} 18... Rxf1+ {[%clk 0:00:42.4]} 19. Rxf1 {[%clk 0:00:34.7]} 19... Nc6 {[%clk 0:00:42]} 20. Bxc7 {[%clk 0:00:33.6]} 20... Rf8 {[%clk 0:00:40.8]} 21. Bd6 {[%clk 0:00:28.9]} 21... Rxf1+ {[%clk 0:00:39.4]} 22. Kxf1 {[%clk 0:00:28.7]} 22... Bh6 {[%clk 0:00:38.8]} 23. b3 {[%clk 0:00:25.8]} 23... a6 {[%clk 0:00:38.2]} 24. a4 {[%clk 0:00:24.2]} 24... Bd2 {[%clk 0:00:35.7]} 25. Ke2 {[%clk 0:00:22.5]} 25... Bf4 {[%clk 0:00:34.6]} 26. g3 {[%clk 0:00:21.2]} 26... Bg5 {[%clk 0:00:34]} 27. h3 {[%clk 0:00:20.2]} 27... Bf6 {[%clk 0:00:33.4]} 28. g4 {[%clk 0:00:18.3]} 28... h6 {[%clk 0:00:32.7]} 29. Kd3 {[%clk 0:00:17.6]} 29... Nd4 {[%clk 0:00:31.6]} 30. Ke4 {[%clk 0:00:16.7]} 30... Nxc2 {[%clk 0:00:29.1]} 31. Bxe5 {[%clk 0:00:15.2]} 31... Bxe5 {[%clk 0:00:28]} 32. Kxe5 {[%clk 0:00:14.9]} 32... g5 {[%clk 0:00:26.3]} 33. Kf5 {[%clk 0:00:13.3]} 33... Kg7 {[%clk 0:00:25.6]} 34. Ke4 {[%clk 0:00:09.8]} 34... Ne1 {[%clk 0:00:23.4]} 35. Ke3 {[%clk 0:00:08.7]} 35... Ng2+ {[%clk 0:00:22.5]} 36. Kf3 {[%clk 0:00:07.7]} 36... Ne1+ {[%clk 0:00:21.4]} 37. Kg3 {[%clk 0:00:07.4]} 37... Nc2 {[%clk 0:00:19.8]} 38. h4 {[%clk 0:00:07]} 38... gxh4+ {[%clk 0:00:18.4]} 39. Kxh4 {[%clk 0:00:05.6]} 39... Ne3 {[%clk 0:00:18.1]} 40. g5 {[%clk 0:00:04.7]} 40... Nxc4 {[%clk 0:00:17.3]} 41. bxc4 {[%clk 0:00:03.8]} 41... hxg5+ {[%clk 0:00:16.8]} 42. Kxg5 {[%clk 0:00:03.3]} 42... Kf7 {[%clk 0:00:16.3]} 43. Kf4 {[%clk 0:00:03.1]} 43... Ke6 {[%clk 0:00:15.7]} 44. Ke4 {[%clk 0:00:02.8]} 44... Kd6 {[%clk 0:00:15.2]} 45. Kd4 {[%clk 0:00:02.5]} 45... Kc6 {[%clk 0:00:14.9]} 46. Kc3 {[%clk 0:00:02.2]} 46... b6 {[%clk 0:00:14.5]} 47. Kb4 {[%clk 0:00:01.9]} 47... a5+ {[%clk 0:00:13.5]} 0-1

[Event "Live Chess"]
[Site "Chess.com"]
[Date "2010.12.03"]
[Round "-"]
[White "ShoneCAR"]
[Black "hipposcottimus"]
[Result "1-0"]
[CurrentPosition "4Rk2/p6R/2B5/8/2p5/6P1/PP5P/6K1 b - -"]
[Timezone "UTC"]
[ECO "A10"]
[ECOUrl "https://www.chess.com/openings/English-Opening-Jaenisch-Gambit"]
[UTCDate "2010.12.03"]
[UTCTime "01:22:11"]
[WhiteElo "1680"]
[BlackElo "1690"]
[TimeControl "60"]
[Termination "ShoneCAR won by checkmate"]
[StartTime "01:22:11"]
[EndDate "2010.12.03"]
[EndTime "01:24:20"]
[Link "https://www.chess.com/game/live/73492065"]

1. c4 {[%clk 0:01:00]} 1... b5 {[%clk 0:01:00]} 2. Nf3 {[%clk 0:00:59.5]} 2... bxc4 {[%clk 0:00:58.9]} 3. g3 {[%clk 0:00:59.3]} 3... d6 {[%clk 0:00:58.6]} 4. Bg2 {[%clk 0:00:59]} 4... e5 {[%clk 0:00:58.4]} 5. O-O {[%clk 0:00:58.8]} 5... d5 {[%clk 0:00:58]} 6. Nc3 {[%clk 0:00:58.4]} 6... e4 {[%clk 0:00:57]} 7. Nh4 {[%clk 0:00:56.6]} 7... Nf6 {[%clk 0:00:56.7]} 8. e3 {[%clk 0:00:55.9]} 8... Bd6 {[%clk 0:00:56.3]} 9. d4 {[%clk 0:00:55.3]} 9... O-O {[%clk 0:00:55.7]} 10. Bd2 {[%clk 0:00:52.1]} 10... Nbd7 {[%clk 0:00:55.1]} 11. Re1 {[%clk 0:00:51.4]} 11... Nb6 {[%clk 0:00:54.5]} 12. f3 {[%clk 0:00:50.9]} 12... c6 {[%clk 0:00:54]} 13. fxe4 {[%clk 0:00:50.1]} 13... dxe4 {[%clk 0:00:53.7]} 14. Nxe4 {[%clk 0:00:49.1]} 14... Bg4 {[%clk 0:00:46.7]} 15. Nxf6+ {[%clk 0:00:47.7]} 15... Qxf6 {[%clk 0:00:43.6]} 16. Qxg4 {[%clk 0:00:46.6]} 16... h5 {[%clk 0:00:41.8]} 17. Qf3 {[%clk 0:00:44]} 17... Rfe8 {[%clk 0:00:37.8]} 18. Rf1 {[%clk 0:00:43]} 18... Qh6 {[%clk 0:00:36.1]} 19. Qxc6 {[%clk 0:00:41.8]} 19... Kh7 {[%clk 0:00:35.2]} 20. Be4+ {[%clk 0:00:35.6]} 20... g6 {[%clk 0:00:31.9]} 21. Nxg6 {[%clk 0:00:34.3]} 21... Kg8 {[%clk 0:00:31.5]} 22. Qxd6 {[%clk 0:00:33.4]} 22... Qxg6 {[%clk 0:00:29.7]} 23. Qxg6+ {[%clk 0:00:32.5]} 23... fxg6 {[%clk 0:00:29.2]} 24. Bxg6 {[%clk 0:00:32.1]} 24... Kg7 {[%clk 0:00:28.7]} 25. Bxh5 {[%clk 0:00:30.1]} 25... Rh8 {[%clk 0:00:27.7]} 26. Bf3 {[%clk 0:00:28.7]} 26... Rh7 {[%clk 0:00:24.6]} 27. Bc3 {[%clk 0:00:27.8]} 27... Rah8 {[%clk 0:00:23.7]} 28. d5+ {[%clk 0:00:27.2]} 28... Kg8 {[%clk 0:00:21.5]} 29. Bxh8 {[%clk 0:00:26.9]} 29... Rxh8 {[%clk 0:00:20.7]} 30. Rfd1 {[%clk 0:00:26.4]} 30... Nxd5 {[%clk 0:00:20.1]} 31. Rxd5 {[%clk 0:00:25.3]} 31... Kf7 {[%clk 0:00:19.9]} 32. Rf5+ {[%clk 0:00:24.6]} 32... Ke6 {[%clk 0:00:18.9]} 33. Be4 {[%clk 0:00:23.9]} 33... Re8 {[%clk 0:00:14.8]} 34. Rd1 {[%clk 0:00:21.8]} 34... Ke7 {[%clk 0:00:13.5]} 35. Rh5 {[%clk 0:00:20.9]} 35... Kf7 {[%clk 0:00:12.4]} 36. Bd5+ {[%clk 0:00:19.2]} 36... Kf6 {[%clk 0:00:11.1]} 37. Bc6 {[%clk 0:00:18.3]} 37... Rxe3 {[%clk 0:00:10.1]} 38. Rd6+ {[%clk 0:00:17.3]} 38... Ke7 {[%clk 0:00:08.1]} 39. Rg6 {[%clk 0:00:15.5]} 39... Kf7 {[%clk 0:00:06.8]} 40. Rd6 {[%clk 0:00:14.3]} 40... Re7 {[%clk 0:00:05]} 41. Rh7+ {[%clk 0:00:12.5]} 41... Kf8 {[%clk 0:00:03.3]} 42. Rd8+ {[%clk 0:00:11.4]} 42... Re8 {[%clk 0:00:01.7]} 43. Rxe8# {[%clk 0:00:10.9]} 1-0

[Event "Live Chess"]
[Site "Chess.com"]
[Date "2010.12.03"]
[Round "-"]
[White "hipposcottimus"]
[Black "ShoneCAR"]
[Result "0-1"]
[CurrentPosition "5r1k/pp2Q3/6pp/3p3r/1P6/2P2P2/P3R1Pq/5R1K w - -"]
[Timezone "UTC"]
[ECO "C55"]
[ECOUrl "https://www.chess.com/openings/Italian-Game-Anti-Fried-Liver-Defense"]
[UTCDate "2010.12.03"]
[UTCTime "01:20:17"]
[WhiteElo "1699"]
[BlackElo "1671"]
[TimeControl "60"]
[Termination "ShoneCAR won by checkmate"]
[StartTime "01:20:17"]
[EndDate "2010.12.03"]
[EndTime "01:21:49"]
[Link "https://www.chess.com/game/live/73491695"]

1. e4 {[%clk 0:01:00]} 1... e5 {[%clk 0:01:00]} 2. Nf3 {[%clk 0:00:59.3]} 2... Nc6 {[%clk 0:00:59.7]} 3. Bc4 {[%clk 0:00:58.9]} 3... h6 {[%clk 0:00:59.4]} 4. d4 {[%clk 0:00:57.3]} 4... Be7 {[%clk 0:00:58.7]} 5. d5 {[%clk 0:00:56.3]} 5... Na5 {[%clk 0:00:57.2]} 6. Bd3 {[%clk 0:00:56]} 6... c6 {[%clk 0:00:55.9]} 7. Bd2 {[%clk 0:00:55.7]} 7... cxd5 {[%clk 0:00:55.3]} 8. Bxa5 {[%clk 0:00:54]} 8... Qxa5+ {[%clk 0:00:54]} 9. c3 {[%clk 0:00:51]} 9... dxe4 {[%clk 0:00:53.4]} 10. Bxe4 {[%clk 0:00:50.1]} 10... Bc5 {[%clk 0:00:51.7]} 11. O-O {[%clk 0:00:49.2]} 11... Qb6 {[%clk 0:00:50.7]} 12. Qe2 {[%clk 0:00:46.5]} 12... Nf6 {[%clk 0:00:49.7]} 13. Nbd2 {[%clk 0:00:45.5]} 13... Nxe4 {[%clk 0:00:48.8]} 14. Nxe4 {[%clk 0:00:44.6]} 14... d5 {[%clk 0:00:48]} 15. Nxc5 {[%clk 0:00:43.6]} 15... Qxc5 {[%clk 0:00:47.4]} 16. Qxe5+ {[%clk 0:00:43]} 16... Be6 {[%clk 0:00:45.9]} 17. Nd4 {[%clk 0:00:40.4]} 17... O-O {[%clk 0:00:44.3]} 18. Nxe6 {[%clk 0:00:39.7]} 18... fxe6 {[%clk 0:00:43.3]} 19. Qxe6+ {[%clk 0:00:39.4]} 19... Kh8 {[%clk 0:00:41.8]} 20. Rae1 {[%clk 0:00:34.3]} 20... Rf6 {[%clk 0:00:39.5]} 21. Qg4 {[%clk 0:00:33.8]} 21... Raf8 {[%clk 0:00:38.2]} 22. b4 {[%clk 0:00:32.3]} 22... Qb6 {[%clk 0:00:35.8]} 23. Re2 {[%clk 0:00:28.7]} 23... Kh7 {[%clk 0:00:33.7]} 24. Qd4 {[%clk 0:00:26.2]} 24... Qd6 {[%clk 0:00:30.3]} 25. Qd3+ {[%clk 0:00:24.9]} 25... Kh8 {[%clk 0:00:28.2]} 26. f3 {[%clk 0:00:23.5]} 26... g6 {[%clk 0:00:27.6]} 27. Kh1 {[%clk 0:00:21.6]} 27... Rf5 {[%clk 0:00:27]} 28. Qe3 {[%clk 0:00:20.4]} 28... Rh5 {[%clk 0:00:25.8]} 29. Qe7 {[%clk 0:00:18.8]} 29... Qxh2# {[%clk 0:00:24.6]} 0-1

[Event "Live Chess"]
[Site "Chess.com"]
[Date "2010.12.02"]
[Round "-"]
[White "jcalderwood"]
[Black "hipposcottimus"]
[Result "1-0"]
[CurrentPosition "4q2k/pp5p/3p2p1/4n3/1Pp4P/P1Pb1PP1/3B1RK1/8 b - -"]
[Timezone "UTC"]
[ECO "C47"]
[ECOUrl "https://www.chess.com/openings/Four-Knights-Game"]
[UTCDate "2010.12.02"]
[UTCTime "21:00:52"]
[WhiteElo "1441"]
[BlackElo "1708"]
[TimeControl "60"]
[Termination "jcalderwood won on time"]
[StartTime "21:00:52"]
[EndDate "2010.12.02"]
[EndTime "21:03:12"]
[Link "https://www.chess.com/game/live/73428559"]

1. e4 {[%clk 0:01:00]} 1... e5 {[%clk 0:01:00]} 2. Nf3 {[%clk 0:00:58.7]} 2... Nc6 {[%clk 0:00:59.7]} 3. Nc3 {[%clk 0:00:57.7]} 3... Nf6 {[%clk 0:00:59.4]} 4. b3 {[%clk 0:00:56.8]} 4... Bb4 {[%clk 0:00:58.4]} 5. Be2 {[%clk 0:00:54.4]} 5... Nd4 {[%clk 0:00:57.8]} 6. a3 {[%clk 0:00:50.9]} 6... Bxc3 {[%clk 0:00:56.9]} 7. dxc3 {[%clk 0:00:50]} 7... Nxf3+ {[%clk 0:00:55.7]} 8. Bxf3 {[%clk 0:00:48.4]} 8... d6 {[%clk 0:00:55.4]} 9. O-O {[%clk 0:00:47.5]} 9... O-O {[%clk 0:00:54.3]} 10. Qd3 {[%clk 0:00:46.5]} 10... Nd7 {[%clk 0:00:54]} 11. Be3 {[%clk 0:00:44.3]} 11... c5 {[%clk 0:00:52.3]} 12. Rad1 {[%clk 0:00:43]} 12... f5 {[%clk 0:00:47.7]} 13. exf5 {[%clk 0:00:41.4]} 13... Nf6 {[%clk 0:00:41.8]} 14. b4 {[%clk 0:00:39.7]} 14... e4 {[%clk 0:00:40.5]} 15. Qe2 {[%clk 0:00:36.5]} 15... exf3 {[%clk 0:00:39.3]} 16. Qxf3 {[%clk 0:00:36.5]} 16... Ne8 {[%clk 0:00:36]} 17. Qg3 {[%clk 0:00:34.4]} 17... Bxf5 {[%clk 0:00:35.1]} 18. Bh6 {[%clk 0:00:32.7]} 18... Bg6 {[%clk 0:00:34.8]} 19. Bd2 {[%clk 0:00:28.7]} 19... Rf6 {[%clk 0:00:31.6]} 20. Rfe1 {[%clk 0:00:27.2]} 20... Nc7 {[%clk 0:00:29.9]} 21. Re2 {[%clk 0:00:24.7]} 21... Ne6 {[%clk 0:00:29.1]} 22. Re3 {[%clk 0:00:24.7]} 22... Qf8 {[%clk 0:00:23.9]} 23. Rde1 {[%clk 0:00:22.1]} 23... Re8 {[%clk 0:00:23.5]} 24. f3 {[%clk 0:00:20.8]} 24... Bxc2 {[%clk 0:00:18.6]} 25. Rf1 {[%clk 0:00:19.2]} 25... Bg6 {[%clk 0:00:16.9]} 26. Rf2 {[%clk 0:00:17.7]} 26... Bh5 {[%clk 0:00:15.9]} 27. Ree2 {[%clk 0:00:16.1]} 27... Bg6 {[%clk 0:00:14.8]} 28. Re3 {[%clk 0:00:15.2]} 28... Ng5 {[%clk 0:00:13.6]} 29. Ree2 {[%clk 0:00:15.2]} 29... Rxe2 {[%clk 0:00:11.8]} 30. Rxe2 {[%clk 0:00:14.4]} 30... Ne6 {[%clk 0:00:11.4]} 31. Qh3 {[%clk 0:00:11.7]} 31... Bd3 {[%clk 0:00:11]} 32. Rf2 {[%clk 0:00:10.2]} 32... c4 {[%clk 0:00:09.6]} 33. Qg3 {[%clk 0:00:09.1]} 33... Rg6 {[%clk 0:00:08.5]} 34. Qh3 {[%clk 0:00:07.5]} 34... Nf4 {[%clk 0:00:08.2]} 35. Qe6+ {[%clk 0:00:04.8]} 35... Kh8 {[%clk 0:00:05.5]} 36. Qxg6 {[%clk 0:00:03]} 36... Nxg6 {[%clk 0:00:03.2]} 37. g3 {[%clk 0:00:03]} 37... Qe8 {[%clk 0:00:02.6]} 38. h3 {[%clk 0:00:02.1]} 38... Ne5 {[%clk 0:00:00.5]} 39. Kg2 {[%clk 0:00:02.1]} 39... g6 {[%clk 0:00:00.1]} 40. h4 {[%clk 0:00:00.4]} 1-0

[Event "Live Chess"]
[Site "Chess.com"]
[Date "2010.12.02"]
[Round "-"]
[White "hipposcottimus"]
[Black "ruslangross"]
[Result "1-0"]
[CurrentPosition "r4k2/pq2bQp1/1p5p/2p1N3/8/1P2B3/2P3PP/3R2K1 b - -"]
[Timezone "UTC"]
[ECO "C55"]
[ECOUrl "https://www.chess.com/openings/Italian-Game-Anti-Fried-Liver-Defense"]
[UTCDate "2010.12.02"]
[UTCTime "20:54:31"]
[WhiteElo "1370"]
[BlackElo "1282"]
[TimeControl "120+12"]
[Termination "hipposcottimus won by checkmate"]
[StartTime "20:54:31"]
[EndDate "2010.12.02"]
[EndTime "20:59:38"]
[Link "https://www.chess.com/game/live/73426990"]

1. e4 {[%clk 0:02:00]} 1... e5 {[%clk 0:02:00]} 2. Nf3 {[%clk 0:02:11]} 2... Nc6 {[%clk 0:02:09.8]} 3. Bc4 {[%clk 0:02:22]} 3... h6 {[%clk 0:02:18.7]} 4. d4 {[%clk 0:02:31.4]} 4... exd4 {[%clk 0:02:27.9]} 5. Nxd4 {[%clk 0:02:41.7]} 5... Nxd4 {[%clk 0:02:38.2]} 6. Qxd4 {[%clk 0:02:51.9]} 6... c5 {[%clk 0:02:38]} 7. Qc3 {[%clk 0:02:59.9]} 7... d6 {[%clk 0:02:44.3]} 8. Be3 {[%clk 0:02:56.8]} 8... b6 {[%clk 0:02:39.7]} 9. O-O {[%clk 0:03:06.8]} 9... Bd7 {[%clk 0:02:47]} 10. Nd2 {[%clk 0:03:18.5]} 10... Nf6 {[%clk 0:02:55.1]} 11. f4 {[%clk 0:03:24.3]} 11... d5 {[%clk 0:03:04]} 12. exd5 {[%clk 0:03:30.7]} 12... Bf5 {[%clk 0:02:55.5]} 13. Nf3 {[%clk 0:03:26.2]} 13... Nxd5 {[%clk 0:03:05]} 14. Bxd5 {[%clk 0:03:27.5]} 14... Qxd5 {[%clk 0:03:14.4]} 15. Rad1 {[%clk 0:03:39]} 15... Qxa2 {[%clk 0:03:22.8]} 16. b3 {[%clk 0:03:48.4]} 16... Qa6 {[%clk 0:03:27.3]} 17. Qe5+ {[%clk 0:03:59.2]} 17... Be6 {[%clk 0:03:34.9]} 18. f5 {[%clk 0:04:08.7]} 18... Qb7 {[%clk 0:03:07.2]} 19. fxe6 {[%clk 0:04:16]} 19... fxe6 {[%clk 0:03:05.8]} 20. Qxe6+ {[%clk 0:04:21.8]} 20... Be7 {[%clk 0:03:12.1]} 21. Ne5 {[%clk 0:04:30.3]} 21... Rf8 {[%clk 0:03:07.8]} 22. Rxf8+ {[%clk 0:04:36.9]} 22... Kxf8 {[%clk 0:03:17.5]} 23. Qf7# {[%clk 0:04:47.7]} 1-0

[Event "Live Chess"]
[Site "Chess.com"]
[Date "2010.12.02"]
[Round "-"]
[White "hipposcottimus"]
[Black "harrubi"]
[Result "0-1"]
[CurrentPosition "2kr4/pp5p/2p1R3/2n5/8/5rP1/PP5P/2R4K b - -"]
[Timezone "UTC"]
[ECO "C41"]
[ECOUrl "https://www.chess.com/openings/Philidor-Defense-Exchange-Bird-Gambit"]
[UTCDate "2010.12.02"]
[UTCTime "15:40:57"]
[WhiteElo "1364"]
[BlackElo "1260"]
[TimeControl "600"]
[Termination "harrubi won by resignation"]
[StartTime "15:40:57"]
[EndDate "2010.12.02"]
[EndTime "15:52:23"]
[Link "https://www.chess.com/game/live/73344238"]

1. e4 {[%clk 0:10:00]} 1... e5 {[%clk 0:10:00]} 2. Nf3 {[%clk 0:09:51.9]} 2... d6 {[%clk 0:09:54.5]} 3. d4 {[%clk 0:09:37.3]} 3... exd4 {[%clk 0:09:38.7]} 4. c3 {[%clk 0:09:32.7]} 4... dxc3 {[%clk 0:09:35]} 5. Nxc3 {[%clk 0:09:29.6]} 5... Nf6 {[%clk 0:09:30.3]} 6. Bd3 {[%clk 0:09:14.7]} 6... c6 {[%clk 0:09:22.5]} 7. Qc2 {[%clk 0:09:07.9]} 7... d5 {[%clk 0:09:00.9]} 8. O-O {[%clk 0:08:55.5]} 8... dxe4 {[%clk 0:08:53.5]} 9. Re1 {[%clk 0:08:53.1]} 9... Bf5 {[%clk 0:08:42.5]} 10. Nh4 {[%clk 0:08:01.6]} 10... Be6 {[%clk 0:08:11.8]} 11. Bxe4 {[%clk 0:07:29.7]} 11... Bb4 {[%clk 0:08:02.2]} 12. Bg5 {[%clk 0:07:19.6]} 12... Bxc3 {[%clk 0:07:45.5]} 13. Bxf6 {[%clk 0:07:16.2]} 13... Qxf6 {[%clk 0:07:33.1]} 14. Qxc3 {[%clk 0:07:02.3]} 14... Qxh4 {[%clk 0:07:22.3]} 15. Qxg7 {[%clk 0:06:59.2]} 15... Rf8 {[%clk 0:07:04.2]} 16. Rad1 {[%clk 0:06:44.7]} 16... Nd7 {[%clk 0:06:43.8]} 17. Bf5 {[%clk 0:06:19.5]} 17... O-O-O {[%clk 0:06:39]} 18. Bxe6 {[%clk 0:06:07.5]} 18... fxe6 {[%clk 0:06:28.8]} 19. g3 {[%clk 0:05:57]} 19... Qf6 {[%clk 0:06:02.6]} 20. Qg4 {[%clk 0:04:04.8]} 20... Qxf2+ {[%clk 0:05:09.7]} 21. Kh1 {[%clk 0:04:03.5]} 21... Qf3+ {[%clk 0:05:04.4]} 22. Qxf3 {[%clk 0:04:02.6]} 22... Rxf3 {[%clk 0:05:01.9]} 23. Rxe6 {[%clk 0:04:02.3]} 23... Nc5 {[%clk 0:04:50.6]} 24. Rc1 {[%clk 0:03:55.3]} 0-1

[Event "Live Chess"]
[Site "Chess.com"]
[Date "2010.12.02"]
[Round "-"]
[White "hipposcottimus"]
[Black "Jeremy_I"]
[Result "1-0"]
[CurrentPosition "1K6/2Q5/P7/8/8/6k1/8/8 b - -"]
[Timezone "UTC"]
[ECO "C62"]
[ECOUrl "https://www.chess.com/openings/Ruy-Lopez-Opening-Old-Steinitz-Defense-4.d4-exd4-5.Qxd4"]
[UTCDate "2010.12.02"]
[UTCTime "02:36:45"]
[WhiteElo "1374"]
[BlackElo "1403"]
[TimeControl "600"]
[Termination "hipposcottimus won by resignation"]
[StartTime "02:36:45"]
[EndDate "2010.12.02"]
[EndTime "02:49:34"]
[Link "https://www.chess.com/game/live/73183027"]

1. e4 {[%clk 0:10:00]} 1... e5 {[%clk 0:10:00]} 2. Nf3 {[%clk 0:09:51.3]} 2... d6 {[%clk 0:09:58.3]} 3. d4 {[%clk 0:09:47.1]} 3... exd4 {[%clk 0:09:54.6]} 4. Qxd4 {[%clk 0:09:43.8]} 4... Nc6 {[%clk 0:09:50.6]} 5. Bb5 {[%clk 0:09:41.3]} 5... Bd7 {[%clk 0:09:39]} 6. Bxc6 {[%clk 0:09:39]} 6... Bxc6 {[%clk 0:09:36.9]} 7. c4 {[%clk 0:09:38.8]} 7... Nf6 {[%clk 0:09:31.4]} 8. Bg5 {[%clk 0:09:33.4]} 8... Be7 {[%clk 0:09:26.5]} 9. Bxf6 {[%clk 0:09:31.7]} 9... Bxf6 {[%clk 0:09:25.6]} 10. Qd2 {[%clk 0:09:28.8]} 10... Bxe4 {[%clk 0:09:18.9]} 11. Nc3 {[%clk 0:09:27]} 11... Bxf3 {[%clk 0:09:09.2]} 12. Qe3+ {[%clk 0:09:03.4]} 12... Qe7 {[%clk 0:08:47.6]} 13. gxf3 {[%clk 0:09:01]} 13... Qxe3+ {[%clk 0:08:43.2]} 14. fxe3 {[%clk 0:09:00.6]} 14... Bxc3+ {[%clk 0:08:41.8]} 15. bxc3 {[%clk 0:08:58.6]} 15... O-O {[%clk 0:08:41]} 16. Ke2 {[%clk 0:08:58.3]} 16... Rfe8 {[%clk 0:08:39.3]} 17. Rhg1 {[%clk 0:08:57.5]} 17... c5 {[%clk 0:08:38.1]} 18. Rg3 {[%clk 0:08:56.6]} 18... a6 {[%clk 0:08:35.1]} 19. Rag1 {[%clk 0:08:52.6]} 19... g6 {[%clk 0:08:33.9]} 20. h4 {[%clk 0:08:52.2]} 20... b5 {[%clk 0:08:26.5]} 21. h5 {[%clk 0:08:48.4]} 21... bxc4 {[%clk 0:08:22.2]} 22. hxg6 {[%clk 0:08:46.6]} 22... fxg6 {[%clk 0:08:13.5]} 23. f4 {[%clk 0:08:41.9]} 23... Rf8 {[%clk 0:08:06.8]} 24. Rh1 {[%clk 0:08:36.9]} 24... a5 {[%clk 0:08:02]} 25. Rgh3 {[%clk 0:08:34.6]} 25... Rf7 {[%clk 0:07:59.9]} 26. Kf3 {[%clk 0:08:26.9]} 26... Rb8 {[%clk 0:07:49.8]} 27. R1h2 {[%clk 0:08:21.3]} 27... a4 {[%clk 0:07:45.9]} 28. Rh4 {[%clk 0:08:14.3]} 28... a3 {[%clk 0:07:40.7]} 29. Rg4 {[%clk 0:08:12.3]} 29... Rb2 {[%clk 0:07:35.1]} 30. Rgg2 {[%clk 0:08:05.4]} 30... Rxg2 {[%clk 0:07:32.9]} 31. Rxg2 {[%clk 0:08:02.9]} 31... Kh8 {[%clk 0:07:26.1]} 32. Rg5 {[%clk 0:08:01.7]} 32... Rf5 {[%clk 0:07:22.2]} 33. Rg4 {[%clk 0:07:58.3]} 33... Kg7 {[%clk 0:07:15.5]} 34. e4 {[%clk 0:07:55.2]} 34... h5 {[%clk 0:07:07.7]} 35. Rg3 {[%clk 0:07:48.3]} 35... Rf6 {[%clk 0:06:43.2]} 36. f5 {[%clk 0:07:43.2]} 36... Kh6 {[%clk 0:06:34.9]} 37. Kf4 {[%clk 0:07:39.5]} 37... gxf5 {[%clk 0:06:31.7]} 38. exf5 {[%clk 0:07:34.1]} 38... h4 {[%clk 0:06:18.4]} 39. Rh3 {[%clk 0:07:31]} 39... Kh5 {[%clk 0:06:17.3]} 40. Rf3 {[%clk 0:07:21.9]} 40... Rf8 {[%clk 0:06:06.7]} 41. Ke4 {[%clk 0:07:06.8]} 41... Re8+ {[%clk 0:05:50.2]} 42. Kd5 {[%clk 0:07:00.2]} 42... Re5+ {[%clk 0:05:48.6]} 43. Kxd6 {[%clk 0:06:58.6]} 43... Re2 {[%clk 0:05:39.5]} 44. f6 {[%clk 0:06:51.9]} 44... Kg4 {[%clk 0:05:35.9]} 45. f7 {[%clk 0:06:43.9]} 45... Kxf3 {[%clk 0:05:27.3]} 46. f8=Q+ {[%clk 0:06:41.8]} 46... Kg2 {[%clk 0:05:26.1]} 47. Qa8+ {[%clk 0:06:29.6]} 47... Kf2 {[%clk 0:05:11.6]} 48. Qxa3 {[%clk 0:06:17.5]} 48... h3 {[%clk 0:05:08.3]} 49. Qxc5+ {[%clk 0:06:15.8]} 49... Kf3 {[%clk 0:04:55.8]} 50. Qh5+ {[%clk 0:06:03.8]} 50... Kg2 {[%clk 0:04:22.8]} 51. Qxe2+ {[%clk 0:06:01.9]} 51... Kg3 {[%clk 0:04:21.8]} 52. a4 {[%clk 0:05:59]} 52... h2 {[%clk 0:04:21.1]} 53. a5 {[%clk 0:05:55.4]} 53... h1=Q {[%clk 0:04:17.3]} 54. Qxc4 {[%clk 0:05:45.6]} 54... Qh6+ {[%clk 0:04:12.4]} 55. Kc5 {[%clk 0:05:44]} 55... Qf8+ {[%clk 0:04:09.6]} 56. Kb5 {[%clk 0:05:42.5]} 56... Qb8+ {[%clk 0:04:05.2]} 57. Ka4 {[%clk 0:05:41.1]} 57... Qe8+ {[%clk 0:04:00.7]} 58. Qb5 {[%clk 0:05:39.9]} 58... Qe4+ {[%clk 0:03:59.1]} 59. c4 {[%clk 0:05:38.5]} 59... Qc2+ {[%clk 0:03:56.7]} 60. Kb4 {[%clk 0:05:38]} 60... Qb2+ {[%clk 0:03:55.4]} 61. Kc5 {[%clk 0:05:37.6]} 61... Qa3+ {[%clk 0:03:53.7]} 62. Kb6 {[%clk 0:05:35.6]} 62... Qd6+ {[%clk 0:03:52.4]} 63. Qc6 {[%clk 0:05:31.7]} 63... Qb8+ {[%clk 0:03:51.2]} 64. Kc5 {[%clk 0:05:29.2]} 64... Qa7+ {[%clk 0:03:49.4]} 65. Qb6 {[%clk 0:05:27.6]} 65... Qe7+ {[%clk 0:03:48.1]} 66. Kb5 {[%clk 0:05:26.2]} 66... Qd7+ {[%clk 0:03:46.5]} 67. Ka6 {[%clk 0:05:24.7]} 67... Qc8+ {[%clk 0:03:45.3]} 68. Kb5 {[%clk 0:05:21.3]} 68... Qd7+ {[%clk 0:03:44]} 69. Qc6 {[%clk 0:05:20.6]} 69... Qf5+ {[%clk 0:03:41.3]} 70. c5 {[%clk 0:05:18.9]} 70... Qd3+ {[%clk 0:03:38.2]} 71. Kb6 {[%clk 0:05:16.6]} 71... Qb3+ {[%clk 0:03:36.9]} 72. Qb5 {[%clk 0:05:14.7]} 72... Qe6+ {[%clk 0:03:35.1]} 73. c6 {[%clk 0:05:13.8]} 73... Qe3+ {[%clk 0:03:30.4]} 74. Kb7 {[%clk 0:05:09.8]} 74... Qe7+ {[%clk 0:03:28.3]} 75. c7 {[%clk 0:05:07.8]} 75... Qe4+ {[%clk 0:03:26.2]} 76. Qc6 {[%clk 0:05:06.4]} 76... Qb4+ {[%clk 0:03:24.6]} 77. Qb6 {[%clk 0:05:04.5]} 77... Qe4+ {[%clk 0:03:22.3]} 78. Kb8 {[%clk 0:05:03.1]} 78... Qe5 {[%clk 0:03:12.1]} 79. a6 {[%clk 0:04:55.5]} 79... Qe8+ {[%clk 0:03:09.2]} 80. c8=Q {[%clk 0:04:53.1]} 80... Qe5+ {[%clk 0:03:07.7]} 81. Qcc7 {[%clk 0:04:49.8]} 81... Qxc7+ {[%clk 0:03:02.8]} 82. Qxc7+ {[%clk 0:04:49.3]} 1-0